[Event "NJSK 2022 Jeugd B"]
[Site "Almelo, Netherlands"]
[Date "2022.05.04"]
[Round "4.2"]
[White "Achuthan, Dylan"]
[Black "Niemeijer, Leon"]
[Result "1-0"]
[TimeControl "90min/40moves + 30min + 30sec/move"]
[WhiteElo "1995"]
[BlackElo "1693"]

1. e4 {[%clk 01:30:57]} {[%emt 00:00:03]} e6 {[%clk 01:30:55]} {[%emt
00:00:06]} 2. b3 {[%clk 01:31:20]} {[%emt 00:00:06]} d5 {[%clk 01:31:08]}
{[%emt 00:00:18]} 3. Bb2 {[%clk 01:31:46]} {[%emt 00:00:04]} dxe4 {[%clk
01:30:32]} {[%emt 00:01:07]} 4. Nc3 {[%clk 01:31:54]} {[%emt 00:00:21]} Nf6
{[%clk 01:30:47]} {[%emt 00:00:15]} 5. Qe2 {[%clk 01:32:18]} {[%emt 00:00:05]}
b6 {[%clk 01:29:24]} {[%emt 00:01:54]} 6. Nxe4 {[%clk 01:30:13]} {[%emt
00:02:35]} Bb7 {[%clk 01:29:36]} {[%emt 00:00:19]} 7. Nxf6+ {[%clk 01:27:41]}
{[%emt 00:03:02]} gxf6 {[%clk 01:29:54]} {[%emt 00:00:12]} 8. O-O-O {[%clk
01:26:12]} {[%emt 00:01:58]} Rg8 {[%clk 01:27:36]} {[%emt 00:02:47]} 9. f4
{[%clk 01:03:13]} {[%emt 00:23:30]} Nd7 {[%clk 01:14:41]} {[%emt 00:13:24]} 10.
Nf3 {[%clk 00:49:48]} {[%emt 00:13:56]} Qe7 {[%clk 01:10:59]} {[%emt 00:04:12]}
11. g3 {[%clk 00:44:51]} {[%emt 00:05:27]} O-O-O {[%clk 01:03:34]} {[%emt
00:07:54]} 12. Bg2 {[%clk 00:44:53]} {[%emt 00:00:29]} e5 {[%clk 01:03:20]}
{[%emt 00:00:45]} 13. fxe5 {[%clk 00:31:32]} {[%emt 00:13:51]} fxe5 {[%clk
01:01:49]} {[%emt 00:02:00]} 14. Nxe5 {[%clk 00:27:41]} {[%emt 00:04:21]} Nxe5
{[%clk 00:46:36]} {[%emt 00:15:43]} 15. Bxb7+ {[%clk 00:27:34]} {[%emt
00:00:38]} Kxb7 {[%clk 00:46:56]} {[%emt 00:00:09]} 16. Qxe5 {[%clk 00:26:47]}
{[%emt 00:01:17]} Qxe5 {[%clk 00:46:30]} {[%emt 00:00:57]} 17. Bxe5 {[%clk
00:27:15]} {[%emt 00:00:02]} Bh6 {[%clk 00:46:33]} {[%emt 00:00:25]} 18. Rhf1
{[%clk 00:27:11]} {[%emt 00:00:35]} Rd5 {[%clk 00:45:35]} {[%emt 00:01:27]} 19.
Bf4 {[%clk 00:19:09]} {[%emt 00:08:33]} Bg7 {[%clk 00:31:24]} {[%emt 00:14:41]}
20. Rde1 {[%clk 00:17:51]} {[%emt 00:01:48]} Rd7 {[%clk 00:28:32]} {[%emt
00:03:22]} 21. Re4 {[%clk 00:16:32]} {[%emt 00:01:49]} f6 {[%clk 00:22:28]}
{[%emt 00:06:34]} 22. Re6 {[%clk 00:14:11]} {[%emt 00:02:51]} Rf8 {[%clk
00:22:17]} {[%emt 00:00:42]} 23. Be3 {[%clk 00:12:36]} {[%emt 00:02:01]} c5
{[%clk 00:20:27]} {[%emt 00:02:23]} 24. Rf5 {[%clk 00:12:34]} {[%emt 00:00:32]}
Rff7 {[%clk 00:20:19]} {[%emt 00:00:39]} 25. Rh5 {[%clk 00:05:40]} {[%emt
00:07:24]} Bf8 {[%clk 00:20:14]} {[%emt 00:00:35]} 26. Bf4 {[%clk 00:05:07]}
{[%emt 00:01:03]} Rde7 {[%clk 00:17:53]} {[%emt 00:02:51]} 27. Rxe7+ {[%clk
00:04:36]} {[%emt 00:01:00]} Rxe7 {[%clk 00:18:21]} {[%emt 00:00:03]} 28. Kd1
{[%clk 00:04:43]} {[%emt 00:00:21]} Kc6 {[%clk 00:18:07]} {[%emt 00:00:46]} 29.
Bh6 {[%clk 00:03:31]} {[%emt 00:01:42]} Bxh6 {[%clk 00:18:15]} {[%emt
00:00:22]} 30. Rxh6 {[%clk 00:04:00]} Rf7 {[%clk 00:18:43]} {[%emt 00:00:02]}
31. Ke2 {[%clk 00:04:01]} {[%emt 00:00:29]} Kd5 {[%clk 00:18:26]} {[%emt
00:00:46]} 32. Kf3 {[%clk 00:03:52]} {[%emt 00:00:39]} Ke5 {[%clk 00:17:37]}
{[%emt 00:01:20]} 33. g4 {[%clk 00:03:38]} {[%emt 00:00:44]} Rg7 {[%clk
00:17:33]} {[%emt 00:00:34]} 34. h3 {[%clk 00:03:18]} {[%emt 00:00:49]} Rf7
{[%clk 00:16:57]} {[%emt 00:01:07]} 35. Rh5+ {[%clk 00:03:29]} {[%emt
00:00:19]} Ke6 {[%clk 00:16:03]} {[%emt 00:01:25]} 36. c3 {[%clk 00:03:24]}
{[%emt 00:00:34]} Rd7 {[%clk 00:15:29]} {[%emt 00:01:04]} 37. Ke3 {[%clk
00:03:53]} Re7 {[%clk 00:13:08]} {[%emt 00:02:51]} 38. d4 {[%clk 00:02:58]}
{[%emt 00:01:25]} cxd4+ {[%clk 00:12:38]} {[%emt 00:00:59]} 39. Kxd4 {[%clk
00:02:50]} {[%emt 00:00:38]} Rd7+ {[%clk 00:11:06]} {[%emt 00:02:02]} 40. Kc4
{[%clk 00:03:05]} {[%emt 00:00:15]} a6 {[%clk 00:09:54]} {[%emt 00:01:43]} 41.
Kb4 {[%clk 00:01:48]} {[%emt 00:01:44]} Rg7 {[%clk 00:01:09]} {[%emt 00:09:17]}
42. c4 {[%clk 00:00:46]} {[%emt 00:01:33]} Kd6 {[%clk 00:00:48]} {[%emt
00:00:51]} 43. Kc3 {[%clk 00:23:22]} {[%emt 00:07:54]} Ke6 {[%clk 00:23:18]}
{[%emt 00:08:01]} 44. b4 {[%clk 00:23:09]} {[%emt 00:00:42]} Kd6 {[%clk
00:16:19]} {[%emt 00:07:29]} 45. a4 {[%clk 00:23:10]} {[%emt 00:00:29]} Re7
{[%clk 00:13:27]} {[%emt 00:03:22]} 46. a5 {[%clk 00:12:43]} {[%emt 00:10:57]}
Kc7 {[%clk 00:06:30]} {[%emt 00:07:27]} 47. axb6+ {[%clk 00:10:44]} {[%emt
00:02:28]} Kxb6 {[%clk 00:06:59]} {[%emt 00:00:02]} 48. Rh6 {[%clk 00:10:57]}
{[%emt 00:00:17]} Kc7 {[%clk 00:07:24]} {[%emt 00:00:05]} 49. Rxf6 {[%clk
00:08:06]} {[%emt 00:03:20]} Re3+ {[%clk 00:07:45]} {[%emt 00:00:10]} 50. Kd4
{[%clk 00:08:26]} {[%emt 00:00:09]} Rxh3 {[%clk 00:08:07]} {[%emt 00:00:08]} 51.
Rxa6 {[%clk 00:08:27]} {[%emt 00:00:29]} Rh4 {[%clk 00:08:25]} {[%emt
00:00:13]} 52. Kc5 {[%clk 00:08:07]} {[%emt 00:00:50]} Kb7 {[%clk 00:06:37]}
{[%emt 00:02:18]} 53. Rd6 {[%clk 00:07:29]} {[%emt 00:01:07]} Rxg4 {[%clk
00:06:24]} {[%emt 00:00:43]} 54. Rd7+ {[%clk 00:07:51]} {[%emt 00:00:08]} Kc8
{[%clk 00:06:11]} {[%emt 00:00:44]} 55. Rxh7 {[%clk 00:07:57]} {[%emt
00:00:23]} Rg6 {[%clk 00:03:07]} {[%emt 00:03:34]} 56. Kb5 {[%clk 00:08:00]}
{[%emt 00:00:27]} Rg5+ {[%clk 00:02:38]} {[%emt 00:01:00]} 57. c5 {[%clk
00:08:22]} {[%emt 00:00:08]} Rg6 {[%clk 00:02:35]} {[%emt 00:00:33]} 58. c6
{[%clk 00:08:20]} {[%emt 00:00:33]} Rg4 {[%clk 00:00:53]} {[%emt 00:02:11]} 59.
Kc5 {[%clk 00:08:38]} {[%emt 00:00:12]} Kd8 {[%clk 00:01:04]} {[%emt 00:00:19]}
60. b5 {[%clk 00:08:56]} {[%emt 00:00:12]} Rg5+ {[%clk 00:01:05]} {[%emt
00:00:30]} 61. Kb6 {[%clk 00:09:19]} {[%emt 00:00:06]} Rg6 {[%clk 00:00:45]}
{[%emt 00:00:50]} 62. Rh8+ {[%clk 00:09:11]} {[%emt 00:00:38]} Ke7 {[%clk
00:01:13]} {[%emt 00:00:02]} 63. Kb7 {[%clk 00:09:28]} {[%emt 00:00:12]} Rg7
{[%clk 00:00:52]} {[%emt 00:00:52]} 64. c7 {[%clk 00:09:38]} {[%emt 00:00:20]}
Kd6 {[%clk 00:01:19]} {[%emt 00:00:03]} 65. Rh6+ {[%clk 00:09:21]} {[%emt
00:00:47]} Kc5 {[%clk 00:01:16]} {[%emt 00:00:33]} 66. Kb8 {[%clk 00:09:32]}
{[%emt 00:00:19]} Kxb5 {[%clk 00:00:43]} {[%emt 00:01:03]} 67. c8=Q {[%clk
00:09:36]} {[%emt 00:00:26]} 1-0

[Event "NJSK 2022 Jeugd B"]
[Site "Almelo, Netherlands"]
[Date "2022.05.04"]
[Round "4.3"]
[White "Smid, Jelle"]
[Black "Wage, Sander"]
[Result "1/2-1/2"]
[TimeControl "90min/40moves + 30min + 30sec/move"]
[WhiteElo "1450"]
[BlackElo "1859"]

1. d4 {[%clk 01:30:58]} {[%emt 00:00:02]} Nf6 {[%clk 01:30:56]} {[%emt
00:00:05]} 2. c4 {[%clk 01:31:19]} {[%emt 00:00:08]} g6 {[%clk 01:31:23]}
{[%emt 00:00:03]} 3. Nc3 {[%clk 01:31:39]} {[%emt 00:00:10]} Bg7 {[%clk
01:31:51]} {[%emt 00:00:02]} 4. e4 {[%clk 01:32:01]} {[%emt 00:00:08]} d6
{[%clk 01:32:19]} {[%emt 00:00:03]} 5. h3 {[%clk 01:32:09]} {[%emt 00:00:21]}
O-O {[%clk 01:32:44]} {[%emt 00:00:04]} 6. Be3 {[%clk 01:32:33]} {[%emt
00:00:07]} c5 {[%clk 01:33:12]} {[%emt 00:00:02]} 7. Nge2 {[%clk 01:32:14]}
{[%emt 00:00:49]} Qa5 {[%clk 01:33:17]} {[%emt 00:00:26]} 8. Qd2 {[%clk
01:32:02]} {[%emt 00:00:41]} Nc6 {[%clk 01:23:26]} {[%emt 00:10:21]} 9. Rd1
{[%clk 01:28:14]} {[%emt 00:04:18]} b6 {[%clk 01:21:59]} {[%emt 00:01:58]} 10.
g3 {[%clk 01:27:16]} {[%emt 00:01:27]} cxd4 {[%clk 01:18:12]} {[%emt 00:04:17]}
11. Nxd4 {[%clk 01:27:27]} {[%emt 00:00:19]} Ne5 {[%clk 01:18:38]} {[%emt
00:00:04]} 12. f4 {[%clk 01:22:35]} {[%emt 00:05:22]} Bb7 {[%clk 01:13:01]}
{[%emt 00:06:08]} 13. fxe5 {[%clk 01:20:05]} {[%emt 00:02:59]} dxe5 {[%clk
01:12:22]} {[%emt 00:01:09]} 14. Nb3 {[%clk 01:18:23]} {[%emt 00:02:13]} Qb4
{[%clk 01:12:47]} {[%emt 00:00:04]} 15. Nd5 {[%clk 01:13:03]} {[%emt 00:05:49]}
Qxd2+ {[%clk 01:12:19]} {[%emt 00:00:59]} 16. Nxd2 {[%clk 01:13:22]} {[%emt
00:00:11]} Nh5 {[%clk 01:10:34]} {[%emt 00:02:14]} 17. Nxe7+ {[%clk 01:10:22]}
{[%emt 00:03:31]} Kh8 {[%clk 01:11:00]} {[%emt 00:00:04]} 18. g4 {[%clk
01:07:57]} {[%emt 00:02:54]} Ng3 {[%clk 01:11:23]} {[%emt 00:00:07]} 19. Rg1
{[%clk 01:08:17]} {[%emt 00:00:10]} Nxe4 {[%clk 01:11:34]} {[%emt 00:00:19]} 20.
Nxe4 {[%clk 01:08:35]} {[%emt 00:00:14]} Bxe4 {[%clk 01:11:58]} {[%emt
00:00:05]} 21. Bg2 {[%clk 01:08:27]} {[%emt 00:00:37]} Bxg2 {[%clk 01:12:05]}
{[%emt 00:00:24]} 22. Rxg2 {[%clk 01:08:51]} {[%emt 00:00:06]} f5 {[%clk
01:12:07]} {[%emt 00:00:28]} 23. gxf5 {[%clk 01:08:27]} {[%emt 00:00:54]} gxf5
{[%clk 01:12:29]} {[%emt 00:00:07]} 24. Rd7 {[%clk 01:07:35]} {[%emt 00:01:22]}
f4 {[%clk 01:12:39]} {[%emt 00:00:21]} 25. Bf2 {[%clk 01:05:55]} {[%emt
00:02:10]} e4 {[%clk 01:11:29]} {[%emt 00:01:40]} 26. Nf5 {[%clk 00:56:48]}
{[%emt 00:09:37]} Bxb2 {[%clk 01:11:50]} {[%emt 00:00:08]} 27. Rg5 {[%clk
00:56:46]} {[%emt 00:00:32]} Rad8 {[%clk 01:10:31]} {[%emt 00:01:49]} 28. Bd4+
{[%clk 00:53:14]} {[%emt 00:04:03]} Bxd4 {[%clk 01:10:54]} {[%emt 00:00:06]} 29.
Rxd4 {[%clk 00:53:39]} {[%emt 00:00:06]} Rxd4 {[%clk 01:09:02]} {[%emt
00:02:22]} 30. Nxd4 {[%clk 00:54:04]} {[%emt 00:00:05]} h6 {[%clk 01:08:17]}
{[%emt 00:01:15]} 31. Rf5 {[%clk 00:52:40]} {[%emt 00:01:54]} Rc8 {[%clk
01:07:52]} {[%emt 00:00:56]} 32. Rxf4 {[%clk 00:52:20]} {[%emt 00:00:49]} Rxc4
{[%clk 01:08:11]} {[%emt 00:00:11]} 33. Rxe4 {[%clk 00:52:36]} {[%emt
00:00:14]} Ra4 {[%clk 01:08:08]} {[%emt 00:00:34]} 34. Re8+ {[%clk 00:50:34]}
{[%emt 00:02:32]} Kh7 {[%clk 01:07:28]} {[%emt 00:01:09]} 35. Nc6 {[%clk
00:48:57]} {[%emt 00:02:07]} Rxa2 {[%clk 01:07:32]} {[%emt 00:00:26]} 36. Re7+
{[%clk 00:49:08]} {[%emt 00:00:19]} Kg6 {[%clk 01:07:41]} {[%emt 00:00:21]} 37.
Rxa7 {[%clk 00:49:25]} {[%emt 00:00:12]} Rh2 {[%clk 01:07:01]} {[%emt
00:01:11]} 38. Ra3 {[%clk 00:49:19]} {[%emt 00:00:37]} Rb2 {[%clk 01:02:39]}
{[%emt 00:04:51]} 39. Ne5+ {[%clk 00:48:00]} {[%emt 00:01:49]} Kf5 {[%clk
01:01:35]} {[%emt 00:01:33]} 40. Nd3 {[%clk 00:46:05]} {[%emt 00:02:26]} Rb5
{[%clk 00:56:47]} {[%emt 00:05:18]} 41. Ke2 {[%clk 00:45:42]} {[%emt 00:00:53]}
Rb1 {[%clk 00:56:33]} {[%emt 00:00:45]} 42. Ra4 {[%clk 00:44:51]} {[%emt
00:01:21]} Rh1 {[%clk 00:55:56]} {[%emt 00:01:06]} 43. Nf2 {[%clk 00:44:25]}
{[%emt 00:00:55]} Rb1 {[%clk 00:56:12]} {[%emt 00:00:15]} 44. Nd3 {[%clk
00:43:47]} {[%emt 00:01:08]} Rh1 {[%clk 00:56:09]} {[%emt 00:00:33]} 45. h4
{[%clk 00:43:44]} {[%emt 00:00:32]} Rb1 {[%clk 00:54:56]} {[%emt 00:01:44]} 46.
Rf4+ {[%clk 00:43:57]} {[%emt 00:00:17]} Kg6 {[%clk 00:54:05]} {[%emt
00:01:21]} 47. Ke3 {[%clk 00:43:39]} {[%emt 00:00:48]} Ra1 {[%clk 00:51:52]}
{[%emt 00:02:44]} 48. Rb4 {[%clk 00:42:35]} {[%emt 00:01:33]} Kh5 {[%clk
00:50:22]} {[%emt 00:01:59]} 49. Ne5 {[%clk 00:41:38]} {[%emt 00:01:28]} Ra5
{[%clk 00:41:34]} {[%emt 00:09:19]} 50. Nf3 {[%clk 00:41:21]} {[%emt 00:00:46]}
b5 {[%clk 00:34:58]} {[%emt 00:07:05]} 51. Rb3 {[%clk 00:40:02]} {[%emt
00:01:49]} Kg4 {[%clk 00:34:42]} {[%emt 00:00:46]} 1/2-1/2

[Event "NJSK 2022 Jeugd B"]
[Site "Almelo, Netherlands"]
[Date "2022.05.04"]
[Round "4.5"]
[White "Wierenga, Jael"]
[Black "Klaren, Oscar"]
[Result "0-1"]
[TimeControl "90min/40moves + 30min + 30sec/move"]
[WhiteElo "1691"]
[BlackElo "1878"]

1. d4 {[%clk 01:30:59]} Nf6 {[%clk 01:30:54]} {[%emt 00:00:06]} 2. Bf4 {[%clk
01:31:24]} {[%emt 00:00:05]} d5 {[%clk 01:31:17]} {[%emt 00:00:07]} 3. e3
{[%clk 01:31:47]} {[%emt 00:00:06]} e6 {[%clk 01:31:42]} {[%emt 00:00:06]} 4.
Nd2 {[%clk 01:32:01]} {[%emt 00:00:16]} c5 {[%clk 01:32:06]} {[%emt 00:00:07]}
5. c3 {[%clk 01:31:36]} {[%emt 00:00:55]} Nc6 {[%clk 01:32:31]} {[%emt
00:00:05]} 6. Ngf3 {[%clk 01:31:52]} {[%emt 00:00:14]} cxd4 {[%clk 01:32:38]}
{[%emt 00:00:23]} 7. exd4 {[%clk 01:32:08]} {[%emt 00:00:14]} Nh5 {[%clk
01:32:20]} {[%emt 00:00:48]} 8. Be3 {[%clk 01:31:06]} {[%emt 00:01:31]} Bd6
{[%clk 01:32:37]} {[%emt 00:00:13]} 9. Ne5 {[%clk 01:28:38]} {[%emt 00:02:58]}
Nf6 {[%clk 01:32:54]} {[%emt 00:00:13]} 10. Bb5 {[%clk 01:27:39]} {[%emt
00:01:30]} Bd7 {[%clk 01:25:32]} {[%emt 00:07:52]} 11. Nxd7 {[%clk 01:27:00]}
{[%emt 00:01:08]} Nxd7 {[%clk 01:23:51]} {[%emt 00:02:11]} 12. Qg4 {[%clk
01:22:32]} {[%emt 00:04:57]} O-O {[%clk 01:19:57]} {[%emt 00:04:25]} 13. f4
{[%clk 01:05:46]} {[%emt 00:17:16]} Nf6 {[%clk 01:17:34]} {[%emt 00:02:53]} 14.
Qe2 {[%clk 01:01:19]} {[%emt 00:04:56]} Qc7 {[%clk 01:12:57]} {[%emt 00:05:08]}
15. O-O {[%clk 00:59:54]} {[%emt 00:01:54]} Ne7 {[%clk 01:08:07]} {[%emt
00:05:20]} 16. Bd3 {[%clk 00:49:13]} {[%emt 00:11:11]} Nf5 {[%clk 01:03:32]}
{[%emt 00:05:06]} 17. g3 {[%clk 00:48:23]} {[%emt 00:01:19]} a6 {[%clk
00:59:23]} {[%emt 00:04:39]} 18. a4 {[%clk 00:46:44]} {[%emt 00:02:09]} Rfe8
{[%clk 00:50:07]} {[%emt 00:09:46]} 19. Nf3 {[%clk 00:43:58]} {[%emt 00:03:16]}
Nxe3 {[%clk 00:45:45]} {[%emt 00:04:53]} 20. Qxe3 {[%clk 00:44:25]} {[%emt
00:00:02]} Nd7 {[%clk 00:45:25]} {[%emt 00:00:50]} 21. Rf2 {[%clk 00:39:16]}
{[%emt 00:05:38]} f6 {[%clk 00:43:39]} {[%emt 00:02:17]} 22. Qd2 {[%clk
00:24:24]} {[%emt 00:15:22]} e5 {[%clk 00:40:32]} {[%emt 00:03:37]} 23. fxe5
{[%clk 00:23:19]} {[%emt 00:01:36]} fxe5 {[%clk 00:40:49]} {[%emt 00:00:12]} 24.
dxe5 {[%clk 00:14:40]} {[%emt 00:09:09]} Nxe5 {[%clk 00:40:59]} {[%emt
00:00:20]} 25. Nxe5 {[%clk 00:12:01]} {[%emt 00:03:09]} Rxe5 {[%clk 00:40:52]}
{[%emt 00:00:37]} 26. Re2 {[%clk 00:09:07]} {[%emt 00:03:24]} Bc5+ {[%clk
00:38:42]} {[%emt 00:02:40]} 27. Kg2 {[%clk 00:09:36]} {[%emt 00:00:01]} Rae8
{[%clk 00:36:11]} {[%emt 00:03:01]} 28. Rae1 {[%clk 00:09:53]} {[%emt
00:00:13]} Rxe2+ {[%clk 00:29:19]} {[%emt 00:07:22]} 29. Rxe2 {[%clk 00:10:22]}
Rf8 {[%clk 00:27:43]} {[%emt 00:02:06]} 30. b4 {[%clk 00:08:07]} {[%emt
00:02:45]} Qf7 {[%clk 00:27:17]} {[%emt 00:00:56]} 31. Re5 {[%clk 00:06:34]}
{[%emt 00:02:01]} Qf3+ {[%clk 00:25:22]} {[%emt 00:02:26]} 32. Kh3 {[%clk
00:07:00]} {[%emt 00:00:04]} Rf6 {[%clk 00:23:02]} {[%emt 00:02:51]} 33. bxc5
{[%clk 00:05:07]} {[%emt 00:02:23]} Rh6+ {[%clk 00:23:23]} {[%emt 00:00:09]} 34.
Qxh6 {[%clk 00:05:35]} {[%emt 00:00:02]} gxh6 {[%clk 00:23:47]} {[%emt
00:00:06]} 35. Bf5 {[%clk 00:04:51]} {[%emt 00:01:14]} Kg7 {[%clk 00:18:06]}
{[%emt 00:06:11]} 36. Bg4 {[%clk 00:04:08]} {[%emt 00:01:13]} Qf1+ {[%clk
00:18:21]} {[%emt 00:00:14]} 37. Kh4 {[%clk 00:04:30]} {[%emt 00:00:08]} Qf6+
{[%clk 00:18:46]} {[%emt 00:00:05]} 0-1

[Event "NJSK 2022 Jeugd B"]
[Site "Almelo, Netherlands"]
[Date "2022.05.04"]
[Round "4.6"]
[White "Van Egmond, Tom"]
[Black "Aarts, Joaquin"]
[Result "1-0"]
[TimeControl "90min/40moves + 30min + 30sec/move"]
[WhiteElo "1672"]
[BlackElo "1631"]

1. e4 {[%clk 01:30:58]} {[%emt 00:00:02]} c5 {[%clk 01:30:57]} {[%emt
00:00:04]} 2. Nf3 {[%clk 01:31:17]} {[%emt 00:00:10]} d6 {[%clk 01:31:24]}
{[%emt 00:00:04]} 3. Bb5+ {[%clk 01:31:32]} {[%emt 00:00:14]} Nd7 {[%clk
01:31:49]} {[%emt 00:00:06]} 4. O-O {[%clk 01:31:52]} {[%emt 00:00:09]} a6
{[%clk 01:32:16]} {[%emt 00:00:04]} 5. Bd3 {[%clk 01:31:53]} {[%emt 00:00:29]}
Ngf6 {[%clk 01:32:41]} {[%emt 00:00:05]} 6. Re1 {[%clk 01:32:00]} {[%emt
00:00:22]} e6 {[%clk 01:33:06]} {[%emt 00:00:06]} 7. c3 {[%clk 01:32:14]}
{[%emt 00:00:16]} b5 {[%clk 01:33:29]} {[%emt 00:00:07]} 8. Bc2 {[%clk
01:32:33]} {[%emt 00:00:11]} c4 {[%clk 01:33:55]} {[%emt 00:00:04]} 9. d4
{[%clk 01:32:26]} {[%emt 00:00:36]} cxd3 {[%clk 01:34:06]} {[%emt 00:00:20]} 10.
Qxd3 {[%clk 01:32:49]} {[%emt 00:00:07]} Nc5 {[%clk 01:31:28]} {[%emt
00:03:08]} 11. Qe2 {[%clk 01:19:16]} {[%emt 00:14:02]} Bb7 {[%clk 01:30:36]}
{[%emt 00:01:22]} 12. e5 {[%clk 01:07:34]} {[%emt 00:12:13]} dxe5 {[%clk
01:22:30]} {[%emt 00:08:36]} 13. Nxe5 {[%clk 01:07:57]} {[%emt 00:00:07]} Qd5
{[%clk 01:21:52]} {[%emt 00:01:07]} 14. f3 {[%clk 01:07:18]} {[%emt 00:01:10]}
Bd6 {[%clk 01:03:22]} {[%emt 00:19:00]} 15. b4 {[%clk 00:55:36]} {[%emt
00:12:12]} Bxe5 {[%clk 00:57:29]} {[%emt 00:06:22]} 16. Rd1 {[%clk 00:54:15]}
{[%emt 00:01:51]} Qc6 {[%clk 00:55:21]} {[%emt 00:02:38]} 17. Qxe5 {[%clk
00:54:22]} {[%emt 00:00:24]} Ncd7 {[%clk 00:55:24]} {[%emt 00:00:27]} 18. Qg3
{[%clk 00:54:15]} {[%emt 00:00:36]} e5 {[%clk 00:37:29]} {[%emt 00:18:26]} 19.
Bf5 {[%clk 00:38:06]} {[%emt 00:16:39]} Rd8 {[%clk 00:26:30]} {[%emt 00:11:28]}
20. Bg5 {[%clk 00:28:27]} {[%emt 00:10:09]} O-O {[%clk 00:22:16]} {[%emt
00:04:45]} 21. Nd2 {[%clk 00:18:24]} {[%emt 00:10:33]} Nb6 {[%clk 00:18:01]}
{[%emt 00:04:46]} 22. Ne4 {[%clk 00:12:16]} {[%emt 00:06:37]} Nbd5 {[%clk
00:15:10]} {[%emt 00:03:20]} 23. Qh4 {[%clk 00:07:41]} {[%emt 00:05:05]} h5
{[%clk 00:10:22]} {[%emt 00:05:19]} 24. Rxd5 {[%clk 00:05:17]} {[%emt
00:02:54]} Nxe4 {[%clk 00:03:59]} {[%emt 00:06:53]} 25. Rxd8 {[%clk 00:05:30]}
{[%emt 00:00:17]} Qb6+ {[%clk 00:04:16]} {[%emt 00:00:12]} 26. Kf1 {[%clk
00:05:42]} {[%emt 00:00:18]} Rxd8 {[%clk 00:03:44]} {[%emt 00:01:02]} 27. Bxd8
{[%clk 00:06:07]} {[%emt 00:00:05]} Nd2+ {[%clk 00:03:46]} {[%emt 00:00:29]} 28.
Ke2 {[%clk 00:06:29]} {[%emt 00:00:08]} 1-0